fUSD/lending_fUSD_20260111
["ID","MTS","AMOUNT","RATE_DAILY","PERIOD"]
[401290387,1768108266049,-500.0,0.00032178,14]
[401290388,1768108266070,-500.0,0.00032188,7]
[401290389,1768108266088,-508.0,0.0003226,10]
[401290390,1768108266097,-835.44484862,0.00032284,7]
[401290391,1768108266106,-891.47719001,0.000323,2]
[401290392,1768108266116,-1300.0,0.00032322,7]
[401290393,1768108266125,-1000.0,0.00032329,7]
[401290394,1768108266137,-3000.0,0.00032452,14]
[401290395,1768108266148,-250.0,0.000325,30]
[401290396,1768108266160,-250.0,0.000325,30]
[401290397,1768108266169,-250.0,0.000325,30]
[401290398,1768108266180,-250.0,0.000325,30]
[401290399,1768108266190,-250.0,0.000325,30]
[401290400,1768108266199,-250.0,0.000325,30]
[401290401,1768108266208,-250.0,0.000325,30]
[401290402,1768108266218,-250.0,0.000325,30]
[401290403,1768108266227,-250.0,0.000325,30]
[401290404,1768108266237,-250.0,0.000325,30]
[401290405,1768108266248,-250.0,0.000325,30]
[401290406,1768108266257,-152.0,0.00032575,24]
[401290407,1768108266267,-2000.0,0.000326,2]
[401290408,1768108266277,-1000.0,0.00032603,7]
[401290409,1768108266286,-1000.0,0.00032726,14]
[401290410,1768108266295,-482.91,0.00032734,2]
[401290411,1768108266307,-482.91,0.00032734,2]
[401290412,1768108266316,-1385.66701685,0.00032739,3]
[401290413,1768108266326,-3057.93101456,0.00032776,2]
[401290414,1768108266335,-2165.1,0.000328,30]
[401290415,1768108266345,-4815.1228307,0.000328,2]
[401290416,1768108266354,-508.0,0.00032822,10]
[401290417,1768108266364,-2000.0,0.00032835,3]
[401290418,1768108266374,-2000.0,0.00032835,3]
[401290419,1768108266384,-531.92683587,0.0003286,120]
[401290420,1768108266395,-161.59769368,0.0003287,4]
[401290421,1768108266406,-33241.83641824,0.0003287,2]
[401290422,1768108266416,-1710.52913711,0.0003287,4]
[401290423,1768108266427,-545.25,0.00032872,120]
[401290424,1768108266436,-545.25,0.00032872,120]
[401290425,1768108266446,-545.25,0.00032876,120]
[401290426,1768108266456,-343.62,0.00032877,2]
[401290427,1768108266466,-1310.67,0.00032877,2]
[401290428,1768108266477,-1000.0,0.00032877,10]
[401290429,1768108266487,-1000.0,0.00032877,10]
[401290430,1768108266497,-1000.0,0.00032877,10]
[401290431,1768108266507,-1000.0,0.00032877,10]
[401290432,1768108266519,-1000.0,0.00032877,10]
[401290433,1768108266529,-1000.0,0.00032877,10]
[401290434,1768108266538,-1000.0,0.00032877,10]
[401290435,1768108266548,-1000.0,0.00032877,10]
[401290436,1768108266559,-1000.0,0.00032877,10]
[401290437,1768108266568,-1000.0,0.00032877,10]
[401290438,1768108266578,-1000.0,0.00032877,10]
[401290439,1768108266587,-1000.0,0.00032877,10]
[401290440,1768108266596,-1000.0,0.00032877,10]
[401290441,1768108266605,-1000.0,0.00032877,10]
[401290442,1768108266615,-1000.0,0.00032877,10]
[401290443,1768108266625,-1000.0,0.00032877,10]
[401290444,1768108266634,-1000.0,0.00032877,10]
[401290445,1768108266644,-1000.0,0.00032877,10]
[401290446,1768108266653,-1000.0,0.00032877,10]
[401290447,1768108266663,-1000.0,0.00032877,10]
[401290448,1768108266673,-1000.0,0.00032877,10]
[401290449,1768108266683,-1000.0,0.00032877,10]
[401290450,1768108266693,-1000.0,0.00032877,10]
[401290451,1768108266703,-1000.0,0.00032877,10]
[401290452,1768108266712,-1000.0,0.00032877,10]
[401290453,1768108266721,-1000.0,0.00032877,10]
[401290454,1768108266734,-1000.0,0.00032877,10]
[401290455,1768108266743,-1000.0,0.00032877,10]
[401290456,1768108266753,-1000.0,0.00032877,10]
[401290457,1768108266765,-1000.0,0.00032877,10]
[401290458,1768108266776,-1000.0,0.00032877,10]
[401290459,1768108266785,-1000.0,0.00032877,10]
[401290460,1768108266795,-1000.0,0.00032877,10]
[401290461,1768108266807,-1000.0,0.00032877,10]
[401290462,1768108266816,-1000.0,0.00032877,10]
[401290463,1768108266825,-713.0,0.00032877,10]
[401290464,1768108266836,-230.56352239,0.00032877,2]
[401290465,1768108266845,-511.37559293,0.00032877,5]
[401290466,1768108266855,-150.0,0.00032877,5]
[401290467,1768108266864,-500.0,0.00032877,2]
[401290468,1768108266874,-500.0,0.00032877,2]
[401290469,1768108266884,-500.0,0.00032877,2]
[401290470,1768108266894,-500.0,0.00032877,2]
[401290471,1768108266904,-500.0,0.00032877,2]
[401290472,1768108266913,-343.43880886,0.00032877,2]
[401290473,1768108266923,-500.0,0.00032877,5]
[401290474,1768108266933,-1000.0,0.00032877,7]
[401290475,1768108266943,-150.0,0.00032877,7]
[401290476,1768108266953,-441.0,0.00032877,2]
[401290477,1768108266963,-150.0,0.0003288,7]
[401290478,1768108266973,-19791.24325873,0.00032901,2]
[401290479,1768108266983,-441.0,0.00032932,2]
[401290480,1768108266992,-500.0,0.00032932,30]
[401290481,1768108267002,-150.79,0.00032959,2]
[401290482,1768108267012,-500.0,0.00032959,30]
[401290483,1768108267022,-400.0,0.0003297,2]
[401290484,1768108267032,-700.0,0.0003297,2]
[401290485,1768108267041,-441.0,0.00032987,2]
[401290486,1768108267050,-500.0,0.00032988,120]
[401290487,1768108267060,-500.0,0.00032988,2]
[401290488,1768108267069,-500.0,0.00032988,30]
[401290489,1768108267079,-500.0,0.00032988,120]
[401290490,1768108267088,-500.0,0.00032988,30]
[401290491,1768108267097,-500.0,0.00032989,120]
[401290492,1768108267106,-500.0,0.00032989,2]
[401290493,1768108267116,-500.0,0.00032989,30]
[401290494,1768108267125,-503.80448355,0.00032989,120]
[401290495,1768108267135,-500.0,0.00032989,30]
[401290496,1768108267144,-500.0,0.00032999,120]
[401290497,1768108267154,-500.0,0.00032999,120]
[401290498,1768108267164,-500.0,0.00032999,120]
[401290499,1768108267173,-500.0,0.00032999,120]
[401290500,1768108267183,-500.0,0.00032999,120]
[401290501,1768108267193,-500.0,0.00032999,120]
[401290502,1768108267202,-500.0,0.00032999,2]
[401290503,1768108267211,-508.38523684,0.00032999,2]
[401290504,1768108267221,-545.25,0.00032999,120]
[401290505,1768108267230,-545.25,0.00032999,120]
[401290506,1768108267239,-545.25,0.00032999,120]
[401290507,1768108267248,-500.0,0.00032999,30]
[401290508,1768108267258,-500.0,0.00032999,30]
[401290509,1768108267267,-500.0,0.00032999,30]
[401290510,1768108267276,-500.0,0.00032999,30]
[401290511,1768108267286,-2000.0,0.00032999,120]
[401290512,1768108267296,-465123.59498673,0.00033,10]
[401290513,1768108267306,-3746.04,0.00033,14]
[401290514,1768108267315,-5105.17,0.00033,14]
[401290515,1768108267325,-250.0,0.00033,30]
[401290516,1768108267335,-250.0,0.00033,30]
[401290517,1768108267344,-250.0,0.00033,30]
[401290518,1768108267353,-250.0,0.00033,30]
[401290519,1768108267362,-250.0,0.00033,30]
[401290520,1768108267372,-250.0,0.00033,30]
[401290521,1768108267381,-250.0,0.00033,30]
[401290522,1768108267391,-250.0,0.00033,30]
[401290523,1768108267400,-250.0,0.00033,30]
[401290524,1768108267410,-250.0,0.00033,30]
[401290525,1768108267419,-250.0,0.00033,30]
[401290526,1768108267429,-250.0,0.00033,30]
[401290527,1768108267439,-250.0,0.00033,30]
[401290528,1768108267448,-250.0,0.00033,30]
[401290529,1768108267632,-250.0,0.00033,30]
[401290530,1768108267644,-250.0,0.00033,30]
[401290531,1768108267654,-250.0,0.00033,30]
[401290532,1768108267663,-250.0,0.00033,30]
[401290533,1768108267674,-250.0,0.00033,30]
[401290534,1768108267683,-250.0,0.00033,30]
[401290535,1768108267693,-250.0,0.00033,30]
[401290536,1768108267703,-250.0,0.00033,30]
[401290537,1768108267712,-170.79003371,0.00033,60]
[401290538,1768108267722,-200.0,0.00033,120]
[401290539,1768108267732,-250.0,0.00033,30]
[401290540,1768108267742,-250.0,0.00033,30]
[401290541,1768108267751,-5625.9,0.00033,2]
[401290542,1768108267761,-250.0,0.00033,30]
[401290543,1768108267770,-250.0,0.00033,30]
[401290544,1768108267779,-250.0,0.00033,30]
[401290545,1768108267788,-250.0,0.00033,30]
[401290546,1768108267798,-250.0,0.00033,30]
[401290547,1768108267807,-250.0,0.00033,30]
[401290548,1768108267820,-250.0,0.00033,30]
[401290549,1768108267829,-250.0,0.00033,30]
[401290550,1768108267838,-250.0,0.00033,30]
[401290551,1768108267848,-250.0,0.00033,30]
[401290552,1768108267857,-51142.7746178,0.00033,2]
[401290553,1768108267866,-26298.69970915,0.00033,2]
[401290554,1768108267875,-3868.86971348,0.00033,13]
[401290555,1768108267884,-51423.10077202,0.00033,2]
[401290556,1768108267894,-153.06546041,0.00033,2]
[401290557,1768108267903,-399.0,0.00033,2]
[401290558,1768108267915,-150.0,0.00033,2]
[401290559,1768108267924,-2908.83103315,0.00033,2]
[401290560,1768108267934,-191.67286673,0.00033,120]
[401290561,1768108267943,-168.96505694,0.00033,120]
[401290562,1768108267953,-191.60610542,0.00033,120]
[401290563,1768108267963,-294.47753612,0.00033,120]
[401290564,1768108267973,-50791.97809985,0.00033,7]
[401290565,1768108267984,-512.89819875,0.00033,10]
[401290566,1768108267994,-512.89819875,0.00033,10]
[401290567,1768108268004,-512.89819875,0.00033,10]
[401290568,1768108268013,-512.89819875,0.00033,10]
[401290569,1768108268023,-512.89819875,0.00033,10]
[401290570,1768108268032,-512.89819875,0.00033,10]
[401290571,1768108268042,-512.89819875,0.00033,10]
[401290572,1768108268051,-512.89819875,0.00033,10]
[401290573,1768108268061,-512.89819875,0.00033,10]
[401290574,1768108268070,-512.89819874,0.00033,10]
[401290575,1768108268080,-512.89819874,0.00033,10]
[401290576,1768108268089,-512.89819874,0.00033,10]
[401290577,1768108268099,-512.89819874,0.00033,10]
[401290578,1768108268108,-512.89819874,0.00033,10]
[401290579,1768108268118,-512.89819874,0.00033,10]
[401290580,1768108268127,-512.89819874,0.00033,10]
[401290581,1768108268137,-512.89819874,0.00033,10]
[401290582,1768108268147,-512.89819874,0.00033,10]
[401290583,1768108268156,-512.89819874,0.00033,10]
[401290584,1768108268166,-512.89819874,0.00033,10]
[401290585,1768108268175,-555.375899,0.00033,14]
[401290586,1768108268185,-537.919889,0.00033,8]
[401290587,1768108268194,-1170.8,0.00033,3]
[401290588,1768108268203,-783.39035422,0.00033,2]
[401290589,1768108268213,-783.39035422,0.00033,2]
[401290590,1768108268223,-426.40130142,0.00033,2]
[401290591,1768108268232,-451.50617964,0.00033,2]
[401290592,1768108268242,-451.50617964,0.00033,2]
[401290593,1768108268252,-1300.0,0.00033,7]
[401290594,1768108268262,-500.0,0.00033,14]
[401290595,1768108268271,-817.19191061,0.00033,2]
[401290596,1768108268281,-817.19191061,0.00033,2]
[401290597,1768108268290,-441.0,0.00033041,2]
[401290598,1768108268300,-441.0,0.00033096,2]
[401290599,1768108268310,-172.29262228,0.0003311,7]
[401290600,1768108268319,-1000.0,0.00033151,7]
[401290601,1768108268328,-441.0,0.00033151,2]
[401290602,1768108268338,-152.0,0.00033156,25]
[401290603,1768108268347,-441.0,0.00033206,2]
[401290604,1768108268357,-259.0,0.00033226,30]
[401290605,1768108268367,-333.0,0.00033226,30]
[401290606,1768108268385,-171.0,0.00033226,30]
[401290607,1768108268402,-348.0,0.00033226,30]
[401290608,1768108268412,-441.0,0.00033261,2]
[401290609,1768108268422,-3000.0,0.00033274,14]
[401290610,1768108268431,-200.0,0.000333,2]
[401290611,1768108268440,-200.0,0.000333,2]
[401290612,1768108268450,-200.0,0.000333,2]
[401290613,1768108268459,-200.0,0.000333,2]
[401290614,1768108268469,-200.0,0.000333,2]
[401290615,1768108268478,-441.0,0.00033315,2]
[401290616,1768108268488,-441.0,0.0003337,2]
[401290617,1768108268498,-508.0,0.00033384,11]
[401290618,1768108268507,-545.25,0.00033399,120]
[401290619,1768108268517,-5625.9,0.000334,2]
[401290620,1768108268525,-2165.1,0.000334,30]
[401290621,1768108268534,-1000.0,0.00033425,7]
[401290622,1768108268544,-441.0,0.00033425,2]
[401290623,1768108268552,-401.33231433,0.00033449,2]
[401290624,1768108268562,-441.0,0.0003348,2]
[401290625,1768108268571,-1207.37591328,0.000335,2]
[401290626,1768108268581,-250.0,0.000335,30]
[401290627,1768108268590,-250.0,0.000335,30]
[401290628,1768108268600,-250.0,0.000335,30]
[401290629,1768108268610,-250.0,0.000335,30]
[401290630,1768108268619,-250.0,0.000335,30]
[401290631,1768108268629,-250.0,0.000335,30]
[401290632,1768108268638,-250.0,0.000335,30]
[401290633,1768108268647,-250.0,0.000335,30]
[401290634,1768108268657,-250.0,0.000335,30]
[401290635,1768108268667,-250.0,0.000335,30]
[401290636,1768108268676,-250.0,0.000335,30]
[401290637,1768108268686,-250.0,0.000335,30]
[401290638,1768108268695,-250.0,0.000335,30]
[401290639,1768108268705,-250.0,0.000335,30]
[401290640,1768108268714,-250.0,0.000335,30]
[401290641,1768108268724,-250.0,0.000335,30]
[401290642,1768108268736,-250.0,0.000335,30]
[401290643,1768108268749,-250.0,0.000335,30]
[401290644,1768108268771,-250.0,0.000335,30]
[401290645,1768108268789,-250.0,0.000335,30]
[401290646,1768108268809,-250.0,0.000335,30]
[401290647,1768108268829,-250.0,0.000335,30]
[401290648,1768108268845,-250.0,0.000335,30]
[401290649,1768108268865,-250.0,0.000335,30]
[401290650,1768108268886,-250.0,0.000335,30]
[401290651,1768108268904,-250.0,0.000335,30]
[401290652,1768108268924,-250.0,0.000335,30]
[401290653,1768108268943,-250.0,0.000335,30]
[401290654,1768108268961,-250.0,0.000335,30]
[401290655,1768108268977,-250.0,0.000335,30]
[401290656,1768108268997,-250.0,0.000335,30]
[401290657,1768108269010,-250.0,0.000335,30]
[401290658,1768108269027,-250.0,0.000335,30]
[401290659,1768108269043,-250.0,0.000335,30]
[401290660,1768108269058,-441.0,0.00033535,2]
[401290661,1768108269073,-1000.0,0.00033548,14]
[401290662,1768108269089,-441.0,0.00033589,2]
[401290663,1768108269105,-500.0,0.00033599,120]
[401290664,1768108269120,-500.0,0.00033599,30]
[401290665,1768108269135,-500.0,0.00033599,30]
[401290666,1768108269152,-3955.19,0.000336,30]
[401290667,1768108269168,-477.09866015,0.00033603,2]
[401290668,1768108269183,-441.0,0.00033644,2]
[401290669,1768108269198,-500.0,0.00033659,7]
[401290670,1768108269214,-965.06,0.00033693,2]
[401290671,1768108269229,-200.0,0.00033699,5]
[401290672,1768108269245,-1000.0,0.00033699,7]
[401290673,1768108269260,-441.0,0.00033699,2]
[401290674,1768108269275,-152.0,0.00033736,26]
[401290675,1768108269292,-441.0,0.00033754,2]
[401290676,1768108269308,-545.25,0.00033799,120]
[401290677,1768108269322,-5625.9,0.000338,2]
[401290678,1768108269337,-441.0,0.00033809,2]
[401290679,1768108269351,-500.0,0.00033822,14]
[401290680,1768108269366,-372.21,0.00033828,2]
[401290681,1768108269382,-1300.0,0.00033862,7]
[401290682,1768108269398,-441.0,0.00033863,2]
[401290683,1768108269415,-500.0,0.00033899,7]
[401290684,1768108269430,-191.67286673,0.000339,120]
[401290685,1768108269444,-168.96505694,0.000339,120]
[401290686,1768108269461,-191.60610542,0.000339,120]
[401290687,1768108269476,-294.47753612,0.000339,120]
[401290688,1768108269492,-441.0,0.00033918,2]
[401290689,1768108269509,-500.0,0.00033939,60]
[401290690,1768108269530,-508.0,0.00033945,11]
[401290691,1768108269545,-1000.0,0.00033973,7]
[401290692,1768108269564,-441.0,0.00033973,2]
[401290693,1768108269579,-326.0395727,0.00034,2]
[401290694,1768108269594,-773.21527972,0.00034,7]
[401290695,1768108269609,-1909.65796507,0.00034,2]
[401290696,1768108269623,-500.0,0.00034,120]
[401290697,1768108269638,-250.0,0.00034,30]
[401290698,1768108269652,-2165.1,0.00034,30]
[401290699,1768108269669,-5432.65,0.00034,14]
[401290700,1768108269684,-441.0,0.00034028,2]
[401290701,1768108269699,-519.22017429,0.00034037,2]
[401290702,1768108269715,-2000.0,0.0003406,120]
[401290703,1768108269729,-441.0,0.00034082,2]
[401290704,1768108269744,-3000.0,0.00034096,14]
[401290705,1768108269758,-460.56023229,0.00034137,2]
[401290706,1768108269774,-500.0,0.00034167,7]
[401290707,1768108269789,-1000.0,0.00034247,7]
[401290708,1768108269804,-5625.9,0.000343,2]
[401290709,1768108269818,-152.0,0.00034317,27]
[401290710,1768108269834,-1725.9391238,0.0003449,2]
[401290711,1768108269850,-433.0,0.0003449,10]
[401290712,1768108269864,-5000.0,0.000345,14]
[401290713,1768108269879,-250.0,0.000345,30]
[401290714,1768108269895,-508.0,0.00034507,12]
[401290715,1768108269909,-500.0,0.00034512,7]
[401290716,1768108269924,-250.0,0.00034521,5]
[401290717,1768108269939,-1000.0,0.00034521,7]
[401290718,1768108269953,-333.0,0.00034555,30]
[401290719,1768108269969,-1800.0,0.00034567,21]
[401290720,1768108269983,-2165.1,0.000346,30]
[401290721,1768108269997,-500.0,0.00034644,14]
[401290722,1768108270012,-545.25,0.00034699,120]
[401290723,1768108270026,-545.25,0.00034699,120]
[401290724,1768108270041,-545.25,0.00034699,120]
[401290725,1768108270055,-545.25,0.00034699,120]
[401290726,1768108270069,-545.41433801,0.00034699,120]
[401290727,1768108270083,-500.0,0.00034706,7]
[401290728,1768108270098,-998.0,0.00034747,2]
[401290729,1768108270111,-1000.0,0.00034795,7]
[401290730,1768108270126,-547.21434938,0.00034803,7]
[401290731,1768108270140,-333.0,0.00034808,30]
[401290732,1768108270154,-502.44377943,0.00034821,60]
[401290733,1768108270169,-1444.0,0.00034849,120]
[401290734,1768108270183,-4417.27420399,0.00034857,2]
[401290735,1768108270198,-205.0,0.0003488,30]
[401290736,1768108270214,-152.0,0.00034897,28]
[401290737,1768108270229,-517.84380253,0.000349,120]
[401290738,1768108270243,-295.86535022,0.000349,5]
[401290739,1768108270257,-3000.0,0.00034918,14]
[401290740,1768108270272,-500.0,0.00034936,2]
[401290741,1768108270287,-150.0,0.00034948,2]
[401290742,1768108270302,-1300.0,0.00034991,7]
[401290743,1768108270316,-500.0,0.00034999,120]
[401290744,1768108270329,-500.0,0.00034999,120]
[401290745,1768108270343,-500.0,0.00034999,120]
[401290746,1768108270358,-500.0,0.00034999,30]
[401290747,1768108270372,-500.0,0.00034999,30]
[401290748,1768108270387,-1911.59418687,0.00035,2]
[401290749,1768108270401,-151.0,0.00035,7]
[401290750,1768108270415,-97093.98008935,0.00035,2]
[401290751,1768108270428,-100000.0,0.00035,2]
[401290752,1768108270443,-315.0,0.00035,2]
[401290753,1768108270457,-3746.04,0.00035,14]
[401290754,1768108270472,-5105.17,0.00035,14]
[401290755,1768108270486,-207.06929332,0.00035,120]
[401290756,1768108270795,-1504.32373639,0.00035,30]
[401290757,1768108270807,-150.0,0.00035,60]
[401290758,1768108270817,-500.40333209,0.00035,120]
[401290759,1768108270827,-150.0,0.00035,2]
[401290760,1768108270837,-1109.07942501,0.00035,30]
[401290761,1768108270846,-191.67286673,0.00035,120]
[401290762,1768108270856,-168.96505694,0.00035,120]
[401290763,1768108270865,-191.60610542,0.00035,120]
[401290764,1768108270875,-294.47753612,0.00035,120]
[401290765,1768108270884,-399.77068304,0.00035,10]
[401290766,1768108270894,-803.48032264,0.00035,3]
[401290767,1768108270904,-17331.91431971,0.00035,7]
[401290768,1768108270913,-3468.0,0.00035056,2]
[401290769,1768108270922,-1405.0,0.00035056,2]
[401290770,1768108270932,-614.0,0.00035056,2]
[401290771,1768108270941,-1267.0,0.00035056,2]
[401290772,1768108270951,-506.0,0.00035056,2]
[401290773,1768108270960,-914.0,0.00035056,2]
[401290774,1768108270969,-1201.0,0.00035056,2]
[401290775,1768108270979,-2437.0,0.00035056,2]
[401290776,1768108270989,-500.0,0.00035066,30]
[401290777,1768108270998,-508.0,0.00035068,13]
[401290778,1768108271008,-180.36881814,0.00035068,120]
[401290779,1768108271018,-1000.0,0.00035068,7]
[401290780,1768108271027,-2000.0,0.0003512,120]
[401290781,1768108271037,-1000.0,0.00035192,14]
[401290782,1768108271046,-1000.0,0.00035266,7]
[401290783,1768108271055,-2500.0,0.000353,14]
[401290784,1768108271065,-300.0,0.00035342,5]
[401290785,1768108271074,-1000.0,0.00035342,7]
[401290786,1768108271083,-1300.0,0.0003539,30]
[401290787,1768108271094,-554.38145341,0.00035421,120]
[401290788,1768108271104,-1300.0,0.00035422,30]
[401290789,1768108271113,-252.0,0.00035441,30]
[401290790,1768108271127,-474.94,0.00035445,120]
[401290791,1768108271136,-500.0,0.00035466,14]
[401290792,1768108271146,-150.0,0.00035474,2]
[401290793,1768108271155,-2298.96,0.00035474,2]
[401290794,1768108271164,-152.28,0.00035474,2]
[401290795,1768108271173,-152.42,0.00035474,2]
[401290796,1768108271182,-179.23,0.00035474,2]
[401290797,1768108271192,-310.35,0.00035474,2]
[401290798,1768108271201,-150.0,0.00035474,2]
[401290799,1768108271210,-150.0,0.00035474,2]
[401290800,1768108271219,-150.0,0.00035474,2]
[401290801,1768108271229,-179.19,0.00035474,2]
[401290802,1768108271239,-150.0,0.00035474,2]
[401290803,1768108271249,-178.59,0.00035474,2]
[401290804,1768108271259,-150.0,0.00035474,2]
[401290805,1768108271269,-150.0,0.00035474,2]
[401290806,1768108271278,-152.0,0.00035477,29]
[401290807,1768108271288,-420.92844374,0.00035555,30]
[401290808,1768108271297,-500.0,0.00035609,120]
[401290809,1768108271306,-500.0,0.00035609,120]
[401290810,1768108271316,-468.79032414,0.00035609,120]
[401290811,1768108271325,-500.0,0.00035609,30]
[401290812,1768108271334,-500.0,0.00035609,30]
[401290813,1768108271344,-127093.09018834,0.0003561,2]
[401290814,1768108271353,-30237.53634813,0.0003561,2]
[401290815,1768108271362,-528.6,0.00035616,21]
[401290816,1768108271372,-217.92,0.00035616,27]
[401290817,1768108271382,-229.68867614,0.00035616,15]
[401290818,1768108271391,-379.32,0.00035616,16]
[401290819,1768108271401,-595.5,0.00035616,55]
[401290820,1768108271410,-340.11662164,0.00035616,62]
[401290821,1768108271420,-639.9,0.00035616,97]
[401290822,1768108271429,-741.3,0.00035616,38]
[401290823,1768108271441,-333.65128346,0.00035616,50]
[401290824,1768108271451,-568.5,0.00035616,37]
[401290825,1768108271460,-649.2,0.00035616,106]
[401290826,1768108271471,-591.3,0.00035616,50]
[401290827,1768108271481,-244.5616859,0.00035616,95]
[401290828,1768108271490,-677.7,0.00035616,24]
[401290829,1768108271500,-268.12850577,0.00035616,82]
[401290830,1768108271509,-544.39720568,0.00035616,42]
[401290831,1768108271519,-470.71538504,0.00035616,89]
[401290832,1768108271528,-686.4,0.00035616,65]
[401290833,1768108271538,-362.67944113,0.00035616,33]
[401290834,1768108271547,-318.89723875,0.00035616,58]
[401290835,1768108271557,-500.0,0.00035616,2]
[401290836,1768108271566,-500.0,0.00035616,2]
[401290837,1768108271576,-500.0,0.00035616,2]
[401290838,1768108271586,-500.0,0.00035616,2]
[401290839,1768108271596,-270.03001703,0.00035616,2]
[401290840,1768108271605,-500.0,0.00035616,60]
[401290841,1768108271615,-1999.0,0.00035616,120]
[401290842,1768108271624,-168.0,0.00035616,10]
[401290843,1768108271633,-300.0,0.00035616,5]
[401290844,1768108271643,-300.0,0.00035616,5]
[401290845,1768108271653,-569.40247967,0.00035616,7]
[401290846,1768108271662,-500.0,0.00035616,7]
[401290847,1768108271675,-500.0,0.00035616,7]
[401290848,1768108271686,-500.0,0.00035616,7]
[401290849,1768108271696,-584.74457235,0.00035616,7]
[401290850,1768108271705,-500.0,0.00035616,7]
[401290851,1768108271714,-500.0,0.00035616,7]
[401290852,1768108271724,-500.0,0.00035616,7]
[401290853,1768108271734,-500.0,0.00035616,7]
[401290854,1768108271743,-500.0,0.00035616,7]
[401290855,1768108271753,-500.0,0.00035616,7]
[401290856,1768108271763,-1310.67,0.00035616,2]
[401290857,1768108271772,-1000.0,0.00035616,14]
[401290858,1768108271782,-508.0,0.0003563,13]
[401290859,1768108271792,-500.0,0.00035671,60]
[401290860,1768108271802,-500.0,0.00035726,60]
[401290861,1768108271812,-3000.0,0.0003574,14]
[401290862,1768108271822,-500.0,0.0003578,60]
[401290863,1768108271832,-500.0,0.00035835,60]
[401290864,1768108271842,-333.0,0.00035884,30]
[401290865,1768108271852,-500.0,0.0003589,60]
[401290866,1768108271862,-1000.0,0.0003589,14]
[401290867,1768108271872,-500.0,0.00035945,60]
[401290868,1768108271882,-1356.06399466,0.0003599,10]
[401290869,1768108271892,-500.0,0.00035999,120]
[401290870,1768108271903,-508.03246264,0.00035999,120]
[401290871,1768108271913,-500.0,0.00035999,120]
[401290872,1768108271923,-500.0,0.00035999,120]
[401290873,1768108271933,-500.0,0.00035999,30]
[401290874,1768108271943,-500.0,0.00035999,30]
[401290875,1768108271953,-500.0,0.00036,60]
[401290876,1768108271963,-75103.7527848,0.00036,2]
[401290877,1768108271973,-287.02372757,0.00036,2]
[401290878,1768108271983,-233842.49063306,0.00036,2]
[401290879,1768108271992,-10820.54098037,0.00036,2]
[401290880,1768108272002,-500.0,0.00036,120]
[401290881,1768108272011,-191.67286673,0.00036,120]
[401290882,1768108272021,-168.96505694,0.00036,120]
[401290883,1768108272030,-191.60610542,0.00036,120]
[401290884,1768108272039,-294.47753612,0.00036,120]
[401290885,1768108272048,-441.44,0.00036018,2]
[401290886,1768108272057,-5000.0,0.00036019,2]